[Event "Pia Cramling Ladies Open 2018"]
[Site "Stockholm"]
[Date "2018.09.02"]
[Round "5"]
[White "Olsson, Linn"]
[Black "Mirabdulla, Zulfiya"]
[Result "1-0"]
[ECO "D24"]
[WhiteElo "1703"]
[BlackElo "1350"]
[Annotator "NA RC"]
[PlyCount "46"]
[EventDate "2018.09.01"]
[EventType "swiss"]
[EventCountry "SWE"]
[SourceTitle "playchess.com"]
[Source "ChessBase"]
[SourceQuality "1"]
[TimeControl "1800+10"]

1. d4 {[%emt 0:00:00]} d5 {[%emt 0:00:00]} 2. c4 {[%emt 0:00:10]} dxc4 {[%emt 0:00:23]} 3. Nc3 {[%emt 0:00:00]} Nf6 {[%emt 0:00:28]} 4. Nf3 {[%emt 0:00:35]} e6 {[%emt 0:01:26]} 5. Bg5 {[%emt 0:00:22]} Be7 {[%emt 0:02:08]} 6. e3 {[%emt 0:00:19]} b6 {[%emt 0:02:12]} 7. Bxc4 {[%emt 0:01:01]} Bb7 {[%emt 0:00:33]} 8. O-O {[%emt 0:00:56]} O-O {[%emt 0:00:18]} 9. Rc1 {[%emt 0:00:34]} Nc6 {[%emt 0:03:50]} 10. a3 {[%emt 0:03:34]} a6 {[%emt 0:01:15]} 11. Bd3 {[%emt 0:00:45]} Re8 {[%emt 0:00:51]} 12. Re1 {[%emt 0:02:35]} Qd6 {[%emt 0:06:06]} 13. Bf4 {[%emt 0:03:38]} Qd7 {[%emt 0:01:20]} 14. h3 {[%emt 0:01:10]} Nh5 {[%emt 0:01:10]} 15. Bh2 {[%emt 0:00:26]} Bd6 {[%emt 0:01:16]} 16. Ne5 {[%emt 0:01:13]} Bxe5 {[%emt 0:02:47]} 17. dxe5 {[%emt 0:03:01]} g6 {[%emt 0:01:10]} 18. Ne4 {[%emt 0:00:27]} Qd5 {[%emt 0:02:43]} 19. g4 {[%emt 0:01:08]} f5 {[%emt 0:01:54]} 20. gxh5 {[%emt 0:03:38]} fxe4 21. Be2 {[%emt 0:01:03]} Nxe5 {[%emt 0:01:28]} 22. Qxd5 {[%emt 0:00:39]} exd5 {[%emt 0:00:01]} 23. Rxc7 {[%emt 0:01:58]} Bc8 1-0

[Event "Pia Cramling Ladies Open 2018"]
[Site "Stockholm"]
[Date "2018.09.02"]
[Round "5"]
[White "Hellmer, Helena"]
[Black "Berg Laachiri, Susanna"]
[Result "0-1"]
[ECO "A06"]
[WhiteElo "1436"]
[BlackElo "1903"]
[Annotator "NA RC"]
[PlyCount "84"]
[EventDate "2018.09.01"]
[EventType "swiss"]
[EventCountry "SWE"]
[SourceTitle "playchess.com"]
[Source "ChessBase"]
[SourceQuality "1"]
[TimeControl "1800+10"]

1. Nf3 {[%emt 0:00:00]} d5 {[%emt 0:00:00]} 2. g3 {[%emt 0:00:10]} Nf6 {[%emt 0:00:09]} 3. d3 {[%emt 0:00:01]} Nc6 {[%emt 0:01:26]} 4. Bg2 {[%emt 0:00:03]} e5 {[%emt 0:00:22]} 5. Nbd2 {[%emt 0:00:18]} Be7 {[%emt 0:01:00]} 6. O-O {[%emt 0:00:13]} O-O {[%emt 0:01:03] LiveBook: 48 Games} 7. Re1 {[%emt 0:00:27] A07: Réti Opening: New York and Capablanca Systems} (7. e4 Re8 8. Re1 Bf8 9. exd5 Nxd5 10. Nc4 f6 11. Bd2 Bg4 12. h3 Bh5 13. a3 a5 14. a4 Ndb4 15. Bc3 Bc5 {0-1 (49) Kurnosov,I (2657)-Vitiugov,N (2734) Khanty-Mansiysk 2013}) 7... e4 {[%emt 0:04:08]} 8. Ng5 {[%emt 0:02:31] [#]} (8. dxe4 $15 dxe4 9. Ng5) 8... e3 $1 {[%emt 0:00:48]} 9. Ndf3 $146 {[%emt 0:03:04]} ({Predecessor:} 9. fxe3 Ng4 10. Ndf3 Bxg5 {0-1 (10) Giannoni,S-Garau,B (2299) ICCF email 2014}) 9... Ng4 {[%emt 0:04:42]} (9... exf2+ $19 10. Kxf2 h6) 10. Nh3 {[%emt 0:00:53] [#]} exf2+ {[%emt 0:06:10]} (10... Bc5 $1 $17 11. d4 exf2+ 12. Nxf2 {[#]} Nxd4 $1 {[%mdl 512]} 13. Nxd4 Nxf2 14. Kxf2 Qf6+ 15. Kg1 Qxd4+ 16. Qxd4 Bxd4+ 17. e3 Bb6 18. Bxd5 c6) 11. Nxf2 {[%emt 0:00:02]} Nxf2 {[%emt 0:00:33]} 12. Kxf2 {[%emt 0:00:03]} Be6 {[%emt 0:00:20]} 13. d4 {[%emt 0:01:37]} Bf6 {[%emt 0:00:36]} 14. c3 {[%emt 0:00:11]} Qd7 {[%emt 0:00:15]} 15. Bf4 {[%emt 0:00:49]} Bf5 {[%emt 0:00:29]} 16. Ne5 {[%emt 0:03:11]} Bxe5 {[%emt 0:01:12]} 17. Bxe5 {[%emt 0:00:09]} Nxe5 {[%emt 0:03:20]} 18. dxe5 {[%emt 0:00:02]} c6 {[%emt 0:00:18]} 19. e4 {[%emt 0:00:50]} Bg4 {[%emt 0:00:07]} 20. Bf3 {[%emt 0:01:03]} Bxf3 {[%emt 0:00:22]} 21. Qxf3 {[%emt 0:00:03]} dxe4 {[%emt 0:00:13]} 22. Rxe4 {[%emt 0:00:14]} Rad8 {[%emt 0:00:51]} 23. Rd4 {[%emt 0:00:05]} Qh3 {[%emt 0:00:53]} 24. Kg1 {[%emt 0:01:10]} Qe6 {[%emt 0:00:32]} 25. Re1 {[%emt 0:00:24]} (25. Qd3 $11 {keeps the balance.} Rxd4 26. Qxd4) 25... Rxd4 {[%emt 0:00:42]} 26. cxd4 {[%emt 0:00:05]} Qxa2 {[%emt 0:00:25]} 27. Re2 {[%emt 0:00:02]} Qc4 {[%emt 0:00:19]} 28. Qf2 {[%emt 0:00:28]} a5 {[%emt 0:00:09]} 29. Rc2 {[%emt 0:00:04]} Qe6 {[%emt 0:00:10]} 30. Qd2 {[%emt 0:00:55]} h6 {[%emt 0:00:10]} (30... Qd7 $19 {ist viel giftiger.} 31. Qf2 Rd8) 31. Qxa5 {[%emt 0:00:21]} Qf5 {[%emt 0:00:20]} 32. Qd2 {[%emt 0:00:22]} Rd8 {[%emt 0:00:11]} 33. Rc5 {[%emt 0:00:52]} Qe4 {[%emt 0:00:09]} 34. Ra5 {[%emt 0:03:42]} Rxd4 {[%emt 0:00:20]} 35. Ra8+ $19 {[%emt 0:00:15]} Kh7 {[%emt 0:00:01]} 36. Qc1 {[%emt 0:02:29]} Rc4 {[%emt 0:00:02]} 37. Qf1 {[%emt 0:01:28]} Rc2 {[%emt 0:00:45]} 38. Ra3 {[%emt 0:01:39]} Qd4+ {[%emt 0:00:59]} 39. Kh1 {[%emt 0:00:15]} Rf2 {[%emt 0:00:19]} 40. Qb1+ {[%emt 0:01:00]} g6 {[%emt 0:00:03]} 41. b4 {[%emt 0:03:48]} Qd5+ {[%emt 0:00:09]} 42. Kg1 {[%emt 0:00:02]} Qg2# 0-1

[Event "Pia Cramling Ladies Open 2018"]
[Site "Stockholm"]
[Date "2018.09.02"]
[Round "5"]
[White "Ostensson, Julia"]
[Black "Ristoja, Aulikki"]
[Result "1-0"]
[ECO "B01"]
[WhiteElo "1375"]
[BlackElo "1530"]
[Annotator "NA RC"]
[PlyCount "125"]
[EventDate "2018.09.01"]
[EventType "swiss"]
[EventCountry "SWE"]
[SourceTitle "playchess.com"]
[Source "ChessBase"]
[SourceQuality "1"]
[TimeControl "1800+10"]

1. e4 {[%emt 0:00:00]} d5 {[%emt 0:00:00]} 2. exd5 {[%emt 0:00:05]} Qxd5 {[%emt 0:00:03]} 3. Nc3 {[%emt 0:00:56]} Qa5 {[%emt 0:00:03]} 4. d4 {[%emt 0:01:26]} Nf6 {[%emt 0:00:29]} 5. Nf3 {[%emt 0:00:49]} Bg4 {[%emt 0:00:12]} 6. Be2 {[%emt 0:01:26]} c6 {[%emt 0:00:26]} 7. Bd2 {[%emt 0:01:35]} Bxf3 {[%emt 0:01:31]} 8. Bxf3 {[%emt 0:01:06]} Qb6 {[%emt 0:00:06]} 9. Bf4 {[%emt 0:02:07]} Qxb2 {[%emt 0:02:45]} 10. Ne2 {[%emt 0:01:44]} Qb4+ {[%emt 0:03:16]} 11. Bd2 {[%emt 0:00:44]} Qd6 {[%emt 0:00:36]} 12. Rb1 {[%emt 0:01:05]} Qd7 {[%emt 0:00:52]} 13. Bg5 {[%emt 0:01:01]} e6 {[%emt 0:02:42]} 14. Bxf6 {[%emt 0:01:22]} gxf6 {[%emt 0:00:04]} 15. Qd2 {[%emt 0:01:09]} Qc7 {[%emt 0:01:51]} 16. O-O {[%emt 0:01:08]} Nd7 {[%emt 0:02:26]} 17. Rb3 {[%emt 0:01:15]} Bd6 {[%emt 0:00:57]} 18. h3 {[%emt 0:01:14]} h5 {[%emt 0:02:48]} 19. Rfb1 {[%emt 0:01:21]} b6 {[%emt 0:01:50]} 20. Qe3 {[%emt 0:01:59]} Rc8 {[%emt 0:01:36]} 21. Rc3 {[%emt 0:01:17]} c5 {[%emt 0:02:44]} 22. d5 {[%emt 0:00:28]} e5 {[%emt 0:00:51]} 23. Qe4 {[%emt 0:00:49]} Qd8 {[%emt 0:00:56]} 24. Ng3 {[%emt 0:00:40]} h4 {[%emt 0:01:08]} 25. Nf5 {[%emt 0:00:25]} Bf8 {[%emt 0:01:30]} 26. Rc4 {[%emt 0:01:27]} a6 {[%emt 0:00:59]} 27. Ra4 {[%emt 0:01:30]} a5 {[%emt 0:00:53]} 28. c4 {[%emt 0:00:21]} Rb8 {[%emt 0:00:07]} 29. Be2 {[%emt 0:00:21]} Rb7 {[%emt 0:00:03]} 30. Ra3 {[%emt 0:00:19]} Qb8 {[%emt 0:00:02]} 31. Rab3 {[%emt 0:00:02]} a4 {[%emt 0:00:10]} 32. R3b2 {[%emt 0:00:33]} Qc7 {[%emt 0:00:17]} 33. Bf3 {[%emt 0:01:16]} Nb8 {[%emt 0:00:03]} 34. a3 {[%emt 0:00:14]} Na6 {[%emt 0:00:03]} 35. Qe3 {[%emt 0:00:13]} Be7 {[%emt 0:00:10]} 36. Rd1 {[%emt 0:00:11]} Rb8 {[%emt 0:00:21]} 37. d6 {[%emt 0:00:15]} Bxd6 {[%emt 0:00:04]} 38. Rxd6 {[%emt 0:00:05]} Rd8 {[%emt 0:00:23]} 39. Rbxb6 {[%emt 0:00:38]} Nb8 {[%emt 0:00:08]} 40. Rxd8+ {[%emt 0:00:33]} Qxd8 {[%emt 0:00:02]} 41. Rd6 {[%emt 0:00:07]} Qa5 {[%emt 0:00:11]} 42. Qd2 {[%emt 0:00:19]} Qxd2 {[%emt 0:00:07]} 43. Rxd2 {[%emt 0:00:02]} Nd7 {[%emt 0:00:04]} 44. Bc6 {[%emt 0:00:09]} Rh5 {[%emt 0:00:16]} 45. Bxd7+ {[%emt 0:00:02]} Kf8 {[%emt 0:00:01]} 46. Kh2 {[%emt 0:00:32]} Rg5 {[%emt 0:00:04]} 47. g3 {[%emt 0:00:09]} hxg3+ {[%emt 0:00:02]} 48. fxg3 {[%emt 0:00:02]} Rxf5 {[%emt 0:00:04]} 49. Bxf5 {[%emt 0:00:02]} Kg7 {[%emt 0:00:02]} 50. Rd5 {[%emt 0:00:03]} Kh6 {[%emt 0:00:03]} 51. Rxc5 {[%emt 0:00:05]} Kg5 {[%emt 0:00:02]} 52. Bc2 {[%emt 0:00:06]} f5 {[%emt 0:00:03]} 53. Rxe5 {[%emt 0:00:03]} f6 {[%emt 0:00:02]} 54. Re1 {[%emt 0:00:09]} f4 {[%emt 0:00:03]} 55. c5 {[%emt 0:00:03]} fxg3+ {[%emt 0:00:03]} 56. Kxg3 {[%emt 0:00:03]} f5 {[%emt 0:00:01]} 57. c6 {[%emt 0:00:04]} f4+ {[%emt 0:00:01]} 58. Kf3 {[%emt 0:00:04]} Kh4 {[%emt 0:00:03]} 59. c7 {[%emt 0:00:06]} Kh5 {[%emt 0:00:07]} 60. Re5+ {[%emt 0:00:04]} Kh6 61. c8=Q Kg7 {[%emt 0:00:02]} 62. Qc7+ {[%emt 0:00:16]} Kf8 {[%emt 0:00:15]} 63. Rb5 {[%emt 0:00:08]} 1-0

[Event "Pia Cramling Ladies Open 2018"]
[Site "Stockholm"]
[Date "2018.09.02"]
[Round "6"]
[White "Agrest, Inna"]
[Black "Reizniece-Ozola, Dana"]
[Result "1/2-1/2"]
[ECO "B00"]
[WhiteElo "2283"]
[BlackElo "2304"]
[Annotator "NA"]
[PlyCount "71"]
[EventDate "2018.09.01"]
[EventType "swiss"]
[EventCountry "SWE"]
[SourceTitle "playchess.com"]
[Source "ChessBase"]
[SourceQuality "1"]
[TimeControl "1800+10"]

{[%evp 22,69,5,0,-6,0,0,-5,-1,-10,52,57,50,57,45,42,60,32767,32767,0,0,-12,32767,32767,39,32,37,32767,32767,32767,32767,32767,32767,8,11,0,32767,204,198,32767,32767,10,5,5,32767,32767,32767,32767,32767,0]} 1. e4 {[%emt 0:00:00]} d6 {[%emt 0:00:00]} 2. d4 {[%emt 0:00:00]} g6 {[%emt 0:00:00]} 3. Nf3 {[%emt 0:00:00]} Bg7 {[%emt 0:00:00]} 4. Bd3 {[%emt 0:00:05]} Nf6 {[%emt 0:00:12]} 5. O-O {[%emt 0:00:08]} O-O {[%emt 0:00:04]} 6. Re1 {[%emt 0:00:08]} c5 {[%emt 0:00:45]} 7. c3 {[%emt 0:00:14]} Qc7 {[%emt 0:01:02]} 8. h3 {[%emt 0:01:26]} e5 {[%emt 0:01:39] B07: Pirc Defence: Miscellaneous Systems} (8... b6 9. e5 Nfd7 10. exd6 exd6 11. Na3 d5 12. Nb5 Qc6 13. dxc5 bxc5 14. c4 dxc4 15. Be4 Qxb5 16. Bxa8 {0-1 (39) Iordachescu,V (2588)-Donchenko,A (2570) Montpellier 2015}) 9. Na3 {[%emt 0:00:51]} a6 {[%emt 0:00:58]} 10. dxe5 {[%emt 0:01:48]} dxe5 {[%emt 0:00:01]} 11. Nc4 {[%emt 0:00:05]} Nc6 $146 {[%emt 0:00:37]} ({Predecessor:} 11... Nbd7 12. a4 b6 13. Bg5 Bb7 14. Bxf6 Bxf6 15. Ne3 Bg7 16. Qc2 Nf6 17. a5 {0-1 (67) Guadamuro Torrente,A (2215)-Guramishvili,S (2403) Benidorm 2012}) 12. a4 {[%emt 0:00:51]} Be6 {[%emt 0:00:51]} 13. Ne3 {[%emt 0:02:34]} Rfd8 {[%emt 0:02:21]} 14. Qe2 {[%emt 0:00:11]} Na5 {[%emt 0:00:37]} 15. Ng5 {[%emt 0:02:44]} Nh5 {[%emt 0:06:34]} (15... Bb3 $11) 16. Nxe6 {[%emt 0:04:04]} fxe6 {[%emt 0:00:01]} 17. Bc2 {[%emt 0:00:40]} Nf4 {[%emt 0:00:21]} 18. Qf1 {[%emt 0:02:05]} c4 {[%emt 0:00:03]} 19. g3 {[%emt 0:01:32]} Nd3 {[%emt 0:00:01]} 20. Rd1 {[%emt 0:00:09]} Nxc1 {[%emt 0:00:54]} 21. Raxc1 {[%emt 0:00:03]} Bh6 {[%emt 0:01:14]} 22. Qe2 {[%emt 0:00:03]} b5 {[%emt 0:01:39]} 23. Rxd8+ {[%emt 0:02:03]} Rxd8 {[%emt 0:00:01]} 24. Rd1 {[%emt 0:00:02]} Bxe3 {[%emt 0:01:52]} 25. Qxe3 {[%emt 0:00:31]} Rxd1+ {[%emt 0:00:55]} 26. Bxd1 {[%emt 0:00:01]} Qd6 {[%emt 0:01:07]} 27. Bg4 {[%emt 0:00:42]} Nb3 {[%emt 0:02:24]} 28. Qa7 {[%emt 0:00:42]} Nd2 {[%emt 0:02:53]} 29. axb5 {[%emt 0:01:42]} axb5 {[%emt 0:00:04]} 30. Be2 {[%emt 0:02:35]} Qc6 {[%emt 0:01:13] [#]} 31. Qb8+ {[%emt 0:00:35]} ({Better is} 31. Qe7 $1 $16 Nb3 32. Bg4) 31... Kf7 {[%emt 0:00:01]} 32. Qxe5 {[%emt 0:00:25]} Qxe4 {[%emt 0:00:13]} 33. Qc7+ {[%emt 0:02:12]} Ke8 {[%emt 0:00:02]} 34. Qc8+ {[%emt 0:00:18]} Ke7 {[%emt 0:00:01]} 35. Qc7+ $11 {[%emt 0:01:00]} Ke8 {[%emt 0:00:03]} 36. Qc8+ {[%emt 0:01:16]} 1/2-1/2

[Event "Pia Cramling Ladies Open 2018"]
[Site "Stockholm"]
[Date "2018.09.02"]
[Round "6"]
[White "Bengtsson, Siv"]
[Black "Andersson, Christin"]
[Result "0-1"]
[ECO "C77"]
[WhiteElo "2111"]
[BlackElo "2077"]
[Annotator "NA"]
[PlyCount "54"]
[EventDate "2018.09.01"]
[EventType "swiss"]
[EventCountry "SWE"]
[SourceTitle "playchess.com"]
[Source "ChessBase"]
[SourceQuality "1"]
[TimeControl "1800+10"]

1. e4 {[%emt 0:00:17]} e5 {[%emt 0:00:00]} 2. Nf3 {[%emt 0:00:02]} Nc6 {[%emt 0:00:00]} 3. Bb5 {[%emt 0:00:01]} a6 {[%emt 0:00:00]} 4. Ba4 {[%emt 0:00:04]} Nf6 {[%emt 0:00:15]} 5. d3 {[%emt 0:00:02]} d6 {[%emt 0:00:21] LiveBook: 1832 Games} 6. c3 {[%emt 0:00:13]} Be7 {[%emt 0:00:15]} 7. O-O {[%emt 0:00:18]} Bg4 {[%emt 0:00:12]} 8. Nbd2 {[%emt 0:01:04]} O-O {[%emt 0:00:10]} 9. h3 {[%emt 0:00:27]} Bh5 {[%emt 0:00:08]} 10. Re1 {[%emt 0:00:36]} Nd7 {[%emt 0:00:21]} 11. Nf1 {[%emt 0:03:29] C87: Closed Ruy Lopez: Steinitz-type lines after 6 Re1 d6} (11. Bc2 Nb6 12. Nf1 d5 13. Ng3 Bg6 14. Qe2 Re8 15. Be3 Qd6 16. Bxb6 cxb6 17. h4 h6 18. Bb3 d4 19. cxd4 Nxd4 20. Nxd4 Qxd4 {1-0 (45) So,W (2786)-Onischuk,A (2672) Saint Louis 2018}) 11... Bh4 {[%emt 0:01:38]} 12. Ng3 {[%emt 0:01:52]} Bxg3 {[%emt 0:00:15]} 13. fxg3 {[%emt 0:00:02]} Nc5 $146 {[%emt 0:00:24]} ({Predecessor:} 13... f5 14. Bb3+ Bf7 15. Bxf7+ Rxf7 16. Ng5 Re7 17. Qb3+ Kh8 18. Nf7+ Rxf7 19. Qxf7 fxe4 20. Rxe4 {1-0 (49) Povill Batlle,R (1846)-Gonzalez Muelas,J (1804) Barcelona 2013}) 14. Bc2 {[%emt 0:00:19]} d5 {[%emt 0:00:56]} 15. Be3 {[%emt 0:06:16]} d4 {[%emt 0:00:30]} (15... Bxf3 $5 16. gxf3 d4 $11) 16. Bf2 {[%emt 0:00:02]} (16. g4 $11) 16... Ne6 {[%emt 0:01:16]} (16... Bxf3 $11 {hält das Gleichgewicht.} 17. gxf3 Qd6) 17. g4 {[%emt 0:00:31]} Bg6 {[%emt 0:00:02]} 18. Nh4 {[%emt 0:00:30]} Nf4 {[%emt 0:00:45]} 19. Nxg6 {[%emt 0:00:03]} fxg6 {[%emt 0:00:20]} 20. Qd2 {[%emt 0:01:39]} Qg5 {[%emt 0:00:48]} 21. Rad1 {[%emt 0:01:40]} Rad8 {[%emt 0:00:32]} 22. Kh2 {[%emt 0:01:04]} h5 {[%emt 0:01:02]} 23. g3 {[%emt 0:01:47]} hxg4 {[%emt 0:01:12]} 24. gxf4 {[%emt 0:00:23]} Qh5 $15 {[%emt 0:00:24]} (24... exf4 $19 25. Bxd4 Nxd4 26. cxd4 g3+ 27. Kg1 Qh4 28. Bb3+ Kh7) 25. h4 {[%emt 0:00:58]} exf4 {[%emt 0:00:12]} 26. Rg1 {[%emt 0:00:23]} Ne5 {[%emt 0:00:40]} 27. Qe2 {[%emt 0:00:43]} g3+ {[%emt 0:00:11]} 0-1

[Event "Pia Cramling Ladies Open 2018"]
[Site "Stockholm"]
[Date "2018.09.02"]
[Round "6"]
[White "Cramling Bellon, Anna"]
[Black "Fransson, Angelina"]
[Result "1-0"]
[ECO "E71"]
[WhiteElo "2009"]
[BlackElo "2004"]
[Annotator "NA"]
[PlyCount "85"]
[EventDate "2018.09.01"]
[EventType "swiss"]
[EventCountry "SWE"]
[SourceTitle "playchess.com"]
[Source "ChessBase"]
[SourceQuality "1"]
[TimeControl "1800+10"]

1. d4 {[%emt 0:00:00]} Nf6 {[%emt 0:00:00]} 2. c4 {[%emt 0:00:00]} g6 {[%emt 0:00:00]} 3. Nc3 {[%emt 0:00:00]} Bg7 {[%emt 0:00:00]} 4. e4 {[%emt 0:00:00]} d6 {[%emt 0:00:00]} 5. h3 {[%emt 0:00:00]} c5 {[%emt 0:03:59]} 6. Nf3 {[%emt 0:01:35]} cxd4 {[%emt 0:00:05]} 7. Nxd4 {[%emt 0:00:02]} O-O {[%emt 0:00:14]} 8. Be2 {[%emt 0:00:12]} Nc6 {[%emt 0:00:42]} 9. Be3 {[%emt 0:00:15]} Bd7 {[%emt 0:02:31] LiveBook: 19 Games} 10. O-O {[%emt 0:01:08]} Re8 {[%emt 0:01:01] B38: Sicilian: Maroczy Bind with 5...Bg7 and 7...0-0} 11. Re1 {[%emt 0:02:07]} a6 $146 {[%emt 0:01:20]} ({Predecessor:} 11... Nxd4 12. Bxd4 Bc6 13. Bd3 a5 14. Rc1 Nd7 15. Bxg7 Kxg7 16. Nd5 Nc5 17. Re3 e6 {1-0 (33) Bistric,F (2486)-Velimirovic,D (2487) Subotica 2002}) 12. Bf1 {[%emt 0:01:50]} Rc8 {[%emt 0:00:43]} 13. Nxc6 {[%emt 0:03:42]} Bxc6 {[%emt 0:01:21]} 14. Qb3 {[%emt 0:04:43]} e6 {[%emt 0:05:08]} 15. Rad1 {[%emt 0:03:12]} Qe7 {[%emt 0:00:22]} 16. Bf4 {[%emt 0:02:04]} Red8 {[%emt 0:01:22]} 17. Qa3 {[%emt 0:03:22]} Bf8 {[%emt 0:00:29]} 18. Bg5 {[%emt 0:02:10]} h6 {[%emt 0:00:27]} 19. Bh4 {[%emt 0:01:56]} g5 {[%emt 0:01:10]} 20. Bg3 {[%emt 0:00:01]} Nh5 {[%emt 0:00:02]} 21. Bh2 {[%emt 0:02:13]} (21. Nd5 $5 Bxd5 22. exd5 $14) 21... Nf4 {[%emt 0:00:54]} 22. Bxf4 {[%emt 0:01:11]} gxf4 {[%emt 0:00:01]} 23. Ne2 {[%emt 0:00:18]} e5 {[%emt 0:00:37]} 24. Nc3 {[%emt 0:00:18]} Qg5 {[%emt 0:01:11]} 25. Nd5 {[%emt 0:00:09]} Re8 {[%emt 0:01:22]} 26. Be2 {[%emt 0:00:30]} Rcd8 {[%emt 0:05:51]} 27. Bg4 {[%emt 0:00:17]} h5 {[%emt 0:00:06]} 28. Bf5 {[%emt 0:00:18]} Bd7 {[%emt 0:02:01]} 29. Bxd7 $16 {[%emt 0:00:05]} Rxd7 {[%emt 0:00:02]} 30. g3 {[%emt 0:00:38]} Re6 {[%emt 0:00:05]} 31. Kh2 {[%emt 0:00:24]} Rg6 {[%emt 0:00:10]} 32. Rg1 {[%emt 0:00:01]} fxg3+ {[%emt 0:00:31]} 33. Rxg3 {[%emt 0:00:04]} Qh6 {[%emt 0:00:07]} 34. Nf6+ {[%emt 0:00:03]} Kg7 {[%emt 0:00:11]} 35. Nxd7 {[%emt 0:00:02]} Qf4 {[%emt 0:00:02]} 36. Qe3 {[%emt 0:00:19]} Be7 {[%emt 0:00:28]} 37. Qxf4 {[%emt 0:00:04]} exf4 {[%emt 0:00:01]} 38. Rxg6+ {[%emt 0:00:02]} fxg6 {[%emt 0:00:03]} 39. Nb6 {[%emt 0:00:05]} g5 {[%emt 0:00:12]} 40. Nd5 {[%emt 0:00:05]} Bf8 {[%emt 0:00:04]} 41. h4 {[%emt 0:00:04]} gxh4 {[%emt 0:01:39]} 42. Nxf4 {[%emt 0:00:04]} Kf6 {[%emt 0:00:02]} 43. Rd5 {[%emt 0:00:14]} 1-0

[Event "Pia Cramling Ladies Open 2018"]
[Site "Stockholm"]
[Date "2018.09.02"]
[Round "6"]
[White "Bengtsson, Jessica"]
[Black "Johansson, Viktoria"]
[Result "1-0"]
[ECO "B22"]
[WhiteElo "1986"]
[BlackElo "2106"]
[Annotator "NA"]
[PlyCount "73"]
[EventDate "2018.09.01"]
[EventType "swiss"]
[EventCountry "SWE"]
[SourceTitle "playchess.com"]
[Source "ChessBase"]
[SourceQuality "1"]
[TimeControl "1800+10"]

1. e4 {[%emt 0:00:00]} c5 {[%emt 0:00:00]} 2. c3 {[%emt 0:00:02]} Nf6 {[%emt 0:00:00]} 3. e5 {[%emt 0:00:04]} Nd5 {[%emt 0:00:05]} 4. d4 {[%emt 0:00:04]} cxd4 {[%emt 0:00:09]} 5. Nf3 {[%emt 0:00:04]} Nc6 {[%emt 0:00:39]} 6. cxd4 {[%emt 0:00:07]} d6 {[%emt 0:00:48]} 7. Bc4 {[%emt 0:00:15]} e6 {[%emt 0:00:14]} 8. O-O {[%emt 0:00:16]} Be7 {[%emt 0:00:58]} 9. Bd2 {[%emt 0:00:18] B22: Sicilian: 2 c3} (9. Qe2 O-O 10. a3 Bd7 11. exd6 Bxd6 12. Nc3 Nce7 13. Ne4 Bc6 14. Ne5 Rc8 15. Rd1 Bb8 16. Ng5 Be8 17. Bd3 Nf6 18. Ngf3 Ned5 19. Bd2 a6 20. Rac1 Rxc1 21. Rxc1 Qb6 22. Nc4 Qd8 23. Nce5 Qb6 24. Nc4 Qd8 {½-½ (24) Vachier Lagrave,M (2789)-Caruana,F (2816) Leuven 2018}) 9... O-O {[%emt 0:00:49] LiveBook: 120 Games} 10. Nc3 {[%emt 0:00:17]} Nb6 {[%emt 0:00:35]} 11. Bb3 {[%emt 0:00:45]} Bd7 {[%emt 0:05:31]} 12. Qe2 {[%emt 0:03:16]} dxe5 {[%emt 0:03:45]} 13. dxe5 {[%emt 0:00:13]} Nb4 {[%emt 0:00:33]} 14. Rad1 $146 {[%emt 0:03:42]} ({Predecessor:} 14. a3 N4d5 15. Nxd5 Nxd5 16. Bxd5 exd5 17. Nd4 Qb6 18. Be3 Qg6 19. f4 {½-½ (109) Novikov,V (2314)-Neiksans,A (2458) Panevezys 2009}) 14... Qc8 {[%emt 0:03:45]} 15. Bg5 {[%emt 0:02:27]} Bxg5 {[%emt 0:04:02]} 16. Nxg5 {[%emt 0:00:03]} h6 {[%emt 0:00:23]} 17. Qe4 {[%emt 0:05:36]} hxg5 {[%emt 0:02:33]} 18. Qxb4 {[%emt 0:00:01]} Qc7 {[%emt 0:01:39]} 19. Rfe1 {[%emt 0:01:19]} (19. Qe7 $16) 19... Bc6 {[%emt 0:02:11]} 20. Qg4 {[%emt 0:00:05]} Qe7 {[%emt 0:00:15]} 21. Rd3 {[%emt 0:01:56]} Rad8 {[%emt 0:01:10]} 22. Rh3 {[%emt 0:01:00]} g6 {[%emt 0:00:04]} 23. Rh6 {[%emt 0:06:38]} Kg7 {[%emt 0:00:05]} 24. Qh3 {[%emt 0:00:26]} Rh8 {[%emt 0:00:06]} 25. Rxh8 {[%emt 0:00:08]} Rxh8 {[%emt 0:00:03]} 26. Qe3 {[%emt 0:00:17]} Rh4 {[%emt 0:01:04]} 27. Rd1 {[%emt 0:00:42]} Qb4 {[%emt 0:01:33]} 28. Qxg5 {[%emt 0:01:09]} Rg4 {[%emt 0:01:07]} 29. Qf6+ {[%emt 0:00:37]} Kh6 {[%emt 0:00:03]} 30. Qh8+ {[%emt 0:00:30]} Kg5 {[%emt 0:00:00]} 31. Qf6+ {[%emt 0:00:01]} Kh6 {[%emt 0:00:01]} 32. Rd8 {[%emt 0:01:53]} Rxg2+ {[%emt 0:00:01]} 33. Kf1 {[%emt 0:00:01]} Bb5+ {[%emt 0:00:55]} 34. Nxb5 {[%emt 0:00:48]} Qxb5+ {[%emt 0:00:18]} 35. Kxg2 {[%emt 0:00:03]} Qc6+ {[%emt 0:00:02]} 36. Kg3 {[%emt 0:00:16]} Nd7 {[%emt 0:00:21]} 37. Rh8# {Nb6} 1-0